bitfinex/quotes_BTCUSD_20230103
["timestamp","ask_amount","ask_price","bid_price","bid_amount"]
[1672786869683,0.51021052,16686.0,16685.0,4.28627694]
[1672786869932,0.86956675,16686.0,16685.0,3.68693694]
[1672786870386,0.86956675,16686.0,16685.0,4.28627694]
[1672786870874,0.51021052,16686.0,16685.0,4.28627694]
[1672786871656,0.68988931,16686.0,16685.0,4.28627694]
[1672786872192,0.86960677,16686.0,16685.0,4.28627694]
[1672786873654,0.68988931,16686.0,16685.0,4.28627694]
[1672786876401,0.68988931,16686.0,16685.0,3.98660694]
[1672786878891,1.13906986,16686.0,16685.0,2.51280692]
[1672786879146,1.25587427,16686.0,16685.0,1.91346692]
[1672786879364,0.89651804,16686.0,16685.0,1.68961311]
[1672786879605,1.51094341,16686.0,16685.0,1.68961311]
[1672786879846,0.89466341,16686.0,16685.0,1.68961311]
[1672786880808,0.89455483,16686.0,16685.0,0.50086306]
[1672786881059,3.24790977,16686.0,16685.0,0.50086306]
[1672786881327,2.64860577,16686.0,16685.0,0.50086306]
[1672786882075,3.24790977,16686.0,16685.0,0.50086306]
[1672786882325,2.04930177,16686.0,16685.0,0.00086306]
[1672786882855,1.51083483,16686.0,16685.0,0.00086306]
[1672786883361,1.34387387,16686.0,16685.0,0.00086306]
[1672786883610,1.34386661,16686.0,16685.0,0.00086306]
[1672786883868,0.89455483,16686.0,16685.0,0.00086306]
[1672786884120,1.34387682,16686.0,16685.0,0.00086306]
[1672786884373,0.89455483,16686.0,16685.0,0.00086306]
[1672786884629,1.29455483,16686.0,16685.0,0.00086306]
[1672786885368,1.91083483,16686.0,16685.0,0.00086306]
[1672786886599,1.29455483,16686.0,16685.0,0.00086306]
[1672786887369,1.91083483,16686.0,16685.0,0.00086306]
[1672786888853,1.29455483,16686.0,16685.0,0.00086306]
[1672786889370,0.44722891,16686.0,16685.0,0.00086306]
[1672786889620,0.89654303,16686.0,16685.0,1.90747566]
[1672786889882,1.25598391,16686.0,16685.0,2.61755342]
[1672786890629,1.25598391,16686.0,16685.0,2.91722342]
[1672786890875,0.86965677,16686.0,16685.0,3.31722342]
[1672786891139,1.1392306,16686.0,16685.0,3.31722342]
[1672786891403,0.68991648,16686.0,16685.0,3.31722342]
[1672786891858,1.1392306,16686.0,16685.0,3.31722342]
[1672786892361,0.86965677,16686.0,16685.0,3.31722342]
[1672786892609,0.68991051,16686.0,16685.0,3.31722342]
[1672786892868,1.13922463,16686.0,16685.0,3.31722342]
[1672786893136,1.13922463,16686.0,16685.0,3.01755342]
[1672786894806,0.86965677,16686.0,16685.0,3.01755342]
[1672786895213,0.86965677,16686.0,16685.0,2.71755342]
[1672786895440,0.68990975,16686.0,16685.0,3.01755342]
[1672786896837,0.68990975,16686.0,16685.0,3.61689342]
[1672786897110,0.68990975,16686.0,16685.0,3.01755342]
[1672786902025,1.13922387,16686.0,16685.0,3.01755342]
[1672786902277,0.86965677,16686.0,16685.0,3.01755342]
[1672786902492,1.22203074,16686.0,16685.0,2.71755342]
[1672786903023,1.22203126,16686.0,16685.0,2.71755342]
[1672786903272,0.86965677,16686.0,16685.0,2.71755342]
[1672786903552,1.22203288,16686.0,16685.0,2.71755342]
[1672786903809,1.22203713,16686.0,16685.0,2.71755342]
[1672786910108,1.22203713,16686.0,16685.0,2.00747566]
[1672786910353,0.86259625,16686.0,16685.0,1.40813566]
[1672786910602,0.86268807,16686.0,16685.0,0.58088049]
[1672786910818,0.86242271,16686.0,16685.0,0.58088049]
[1672786913746,1.40088965,16686.0,16685.0,0.58088049]
[1672786913963,0.86242271,16686.0,16685.0,0.58088049]
[1672786915678,1.40088965,16686.0,16685.0,0.58088049]
[1672786916164,0.86242271,16686.0,16685.0,0.58088049]
[1672786916440,0.86242271,16686.0,16685.0,1.18022049]
[1672786916916,0.41328213,16686.0,16685.0,0.58088049]
[1672786917165,0.86242271,16686.0,16685.0,0.58088049]
[1672786918825,0.41328213,16686.0,16685.0,0.58088049]
[1672786919580,0.86242271,16686.0,16685.0,0.58088049]
[1672786920264,0.41328213,16686.0,16685.0,0.58088049]
[1672786921028,0.41328213,16686.0,16685.0,1.77956049]
[1672786921246,0.41328213,16686.0,16685.0,2.00786804]
[1672786921247,0.86267507,16686.0,16685.0,2.00786804]
[1672786922010,0.86267507,16686.0,16685.0,2.30786804]
[1672786922257,0.86267507,16686.0,16685.0,3.59926752]
[1672786922606,0.86267507,16686.0,16685.0,6.08287074]
[1672786922607,0.51032704,16686.0,16685.0,6.08287074]
[1672786922851,0.06090177,16686.0,16685.0,6.01662839]
[1672786923323,0.06090177,16686.0,16685.0,6.1961312]
[1672786923899,0.06090177,16686.0,16685.0,6.01662839]
[1672786924142,0.06090177,16686.0,16685.0,6.07662839]
[1672786924950,0.06090177,16686.0,16685.0,5.56770226]
[1672786925704,0.06090177,16686.0,16685.0,6.08989782]
[1672786926956,0.06090177,16686.0,16685.0,6.38952782]
[1672786928952,0.06090177,16686.0,16685.0,5.86733226]
[1672786929216,0.26927756,16689.0,16686.0,0.4]
[1672786929498,0.88583843,16698.0,16688.0,5.43561318]
[1672786929757,0.02823397,16700.0,16697.0,0.4]
[1672786930069,0.02823397,16700.0,16698.0,0.44721252]
[1672786930291,0.31487349,16699.0,16698.0,0.2321102]
[1672786930545,0.31487349,16699.0,16698.0,0.2186102]
[1672786930800,0.83952435,16699.0,16697.0,1.12231252]
[1672786931073,0.76208601,16699.0,16695.0,1.16833538]
[1672786931327,0.1801,16697.0,16695.0,0.10780966]
[1672786931571,0.61628,16696.0,16695.0,1.00207878]
[1672786931822,0.44721252,16697.0,16695.0,0.80791902]
[1672786932085,0.86737254,16696.0,16695.0,0.03462421]
[1672786932347,2.86269754,16696.0,16695.0,0.17862421]
[1672786932628,3.04249754,16696.0,16695.0,0.17862421]
[1672786932878,0.4,16695.0,16693.0,0.00101302]
[1672786933095,0.61628,16694.0,16693.0,0.00101302]
[1672786933378,0.69802128,16694.0,16693.0,0.00101302]
[1672786933625,1.18645176,16694.0,16693.0,0.00086302]
[1672786933894,1.56267174,16694.0,16693.0,0.00086302]
[1672786934138,1.96267174,16694.0,16693.0,0.00086302]
[1672786934889,1.96267174,16694.0,16693.0,0.00886302]
[1672786935138,1.96267174,16694.0,16693.0,0.00086302]
[1672786935355,1.96267174,16694.0,16693.0,0.00886302]
[1672786935648,2.0067543,16694.0,16693.0,0.00886302]
[1672786935902,2.61131507,16694.0,16693.0,0.00886302]
[1672786936412,2.91131507,16694.0,16693.0,0.00886302]
[1672786936679,2.61131507,16694.0,16693.0,0.00886302]
[1672786937871,3.21033207,16694.0,16693.0,0.00886302]
[1672786939286,1.79312713,16694.0,16693.0,0.00886302]
[1672786939540,0.88870335,16694.0,16693.0,0.00886302]
[1672786939794,3.08785622,16694.0,16693.0,0.00886302]
[1672786940789,2.328e-05,16692.0,16690.0,0.44532716]
[1672786941040,0.6269704,16691.0,16690.0,0.00086302]
[1672786941300,1.29498604,16691.0,16689.0,1.17153491]
[1672786941602,0.17913667,16690.0,16689.0,1.57153491]
[1672786942061,0.17913667,16690.0,16689.0,1.96804171]
[1672786942306,0.17913667,16690.0,16689.0,1.56804171]
[1672786942560,0.17913667,16690.0,16689.0,1.26471455]
[1672786942798,0.17913667,16690.0,16689.0,1.12271455]
[1672786943054,0.17913667,16690.0,16689.0,1.72191155]
[1672786943301,1.25106016,16691.0,16689.0,1.72191155]
[1672786943547,0.74674548,16690.0,16689.0,2.16723871]
[1672786943769,0.74674548,16690.0,16689.0,2.32110855]
[1672786944308,0.74674548,16690.0,16689.0,2.46110855]
[1672786944550,0.56760881,16690.0,16689.0,2.28100855]
[1672786945056,0.74674548,16690.0,16689.0,2.28100855]
[1672786945299,0.74674548,16690.0,16689.0,1.68181155]
[1672786945545,0.74674548,16690.0,16689.0,1.08261455]
[1672786945803,1.19165764,16690.0,16689.0,1.08261455]
[1672786946296,0.56760881,16690.0,16689.0,2.72633571]
[1672786946551,0.44784168,16691.0,16689.0,4.18275022]
[1672786946799,0.78715177,16692.0,16690.0,0.83034916]
[1672786947110,0.78715177,16692.0,16691.0,0.93783835]
[1672786947368,0.17915995,16692.0,16691.0,0.72252637]
[1672786947926,0.62448711,16692.0,16691.0,0.72252637]
[1672786948106,0.89319212,16692.0,16691.0,0.5]
[1672786948375,0.89319212,16692.0,16691.0,0.56]
[1672786948869,1.56870733,16692.0,16691.0,0.56]
[1672786949367,1.56870733,16692.0,16691.0,1.159125]
[1672786949613,1.30000232,16692.0,16691.0,1.159125]
[1672786949861,1.56870733,16692.0,16691.0,1.159125]
[1672786950368,1.56870733,16692.0,16691.0,0.56]
[1672786951125,1.92697613,16692.0,16691.0,0.56]
[1672786951375,1.74783946,16692.0,16691.0,0.56]
[1672786951628,1.92696202,16692.0,16691.0,0.56]
[1672786951871,1.74783946,16692.0,16691.0,0.56]
[1672786952097,1.56371098,16692.0,16691.0,1.75825]
[1672786952866,1.56371098,16692.0,16691.0,1.159125]
[1672786953116,1.12336054,16692.0,16691.0,1.75825]
[1672786953331,0.85465553,16692.0,16691.0,1.75825]
[1672786953620,0.85465553,16692.0,16691.0,1.159125]
[1672786953858,1.12336054,16692.0,16691.0,1.159125]
[1672786954112,1.5686877,16692.0,16691.0,0.56]
[1672786955596,2.19565218,16692.0,16691.0,0.06]
[1672786955851,2.81210516,16692.0,16691.0,0.06]
[1672786956098,1.92694717,16692.0,16691.0,0.06]
[1672786956349,1.97106026,16692.0,16691.0,0.06]
[1672786956845,1.74801444,16692.0,16691.0,0.659125]
[1672786957864,1.74801444,16692.0,16691.0,1.159125]
[1672786958374,0.44822711,16692.0,16691.0,2.41372001]
[1672786958624,1.25143196,16693.0,16691.0,4.39538085]
[1672786958625,1.35342808,16693.0,16691.0,4.39538085]
[1672786958879,0.99515928,16693.0,16692.0,0.5613783]
[1672786959153,0.99515928,16693.0,16692.0,1.98146064]
[1672786959651,1.17410424,16693.0,16692.0,1.98146064]
[1672786960182,1.3535192,16693.0,16692.0,1.98146064]
[1672786960423,0.9952338,16693.0,16692.0,0.94079334]
[1672786960722,1.17410424,16693.0,16692.0,0.94079334]
[1672786960970,1.35303697,16693.0,16692.0,0.28190434]
[1672786961194,1.17430494,16693.0,16692.0,0.88099334]
[1672786962219,1.17430494,16693.0,16692.0,1.32263492]
[1672786962466,0.99543348,16693.0,16692.0,1.92172392]
[1672786963689,0.99543348,16693.0,16692.0,1.32263492]
[1672786964185,1.35370228,16693.0,16692.0,0.88099334]
[1672786964905,0.99543348,16693.0,16692.0,0.88099334]
[1672786965424,0.99543348,16693.0,16692.0,1.32270044]
[1672786965940,1.35370228,16693.0,16692.0,0.06]
[1672786966190,1.7243003,16693.0,16692.0,0.06]
[1672786966438,2.14594254,16693.0,16692.0,0.06]
[1672786966694,2.12871554,16693.0,16692.0,0.06]
[1672786966944,2.14594254,16693.0,16692.0,0.06]
[1672786967200,2.12871554,16693.0,16690.0,1.13967867]
[1672786967450,0.62791617,16691.0,16689.0,2.12138555]
[1672786967687,0.62791617,16691.0,16689.0,1.92221455]
[1672786967688,0.44851267,16690.0,16689.0,1.92221455]
[1672786967944,0.89383983,16690.0,16689.0,2.16010301]
[1672786968209,0.44851267,16690.0,16689.0,2.16010301]
[1672786968462,0.44851267,16690.0,16689.0,2.60089492]
[1672786968705,0.44851267,16690.0,16689.0,2.60081546]
[1672786969711,0.44851267,16690.0,16689.0,3.34001246]
[1672786969943,0.62791617,16690.0,16689.0,4.15733723]
[1672786970200,0.62791617,16690.0,16689.0,3.93920946]
[1672786971481,0.62791617,16690.0,16689.0,4.15455828]
[1672786971739,0.62791617,16690.0,16689.0,2.74081546]
[1672786971969,0.62791617,16690.0,16689.0,3.93920946]
[1672786972230,0.62291617,16690.0,16689.0,3.93920946]
[1672786972721,0.62291617,16690.0,16689.0,4.15975838]
[1672786974237,0.62291617,16690.0,16689.0,1.66221455]
[1672786974238,1.66132411,16690.0,16689.0,1.66221455]
[1672786974481,1.39721718,16690.0,16689.0,1.66221455]
[1672786975738,1.4837351,16690.0,16689.0,1.26221455]
[1672786975986,1.84284905,16690.0,16689.0,1.26221455]
[1672786976250,1.39752189,16690.0,16689.0,1.86141155]
[1672786976515,1.39752189,16690.0,16689.0,2.46060855]
[1672786977802,1.39752189,16690.0,16689.0,1.86141155]
[1672786981653,1.39752189,16690.0,16689.0,1.72141155]
[1672786981906,1.39752189,16690.0,16689.0,1.86141155]
[1672786982909,1.39752189,16690.0,16689.0,2.46060855]
[1672786983153,1.39752189,16690.0,16689.0,2.88053015]
[1672786983417,0.62847782,16690.0,16689.0,2.88053015]
[1672786985736,0.62847782,16690.0,16689.0,1.86141155]
[1672786986215,0.35911395,16690.0,16689.0,1.86141155]
[1672786987391,0.35911395,16690.0,16689.0,2.46060855]
[1672786987642,0.35911395,16690.0,16689.0,2.88056548]
[1672786988593,0.62847118,16690.0,16689.0,2.88056548]
[1672786990586,1.20038963,16690.0,16689.0,2.46060855]
[1672786991535,1.64883907,16690.0,16689.0,2.46060855]
[1672786991745,1.37948184,16690.0,16689.0,2.46060855]
[1672786992809,1.64884404,16690.0,16689.0,2.46060855]
[1672786993055,1.20033249,16690.0,16689.0,2.46060855]
[1672786993547,1.37948184,16690.0,16689.0,2.46060855]
[1672786993793,0.44891964,16690.0,16689.0,3.10237135]
[1672786994043,0.44891964,16690.0,16689.0,1.90397735]
[1672786994785,0.44891964,16690.0,16689.0,1.48958839]
[1672786995048,0.87067372,16690.0,16689.0,1.26221455]
[1672786995293,1.04983204,16690.0,16689.0,1.26221455]
[1672786996012,1.31919889,16690.0,16689.0,1.26221455]
[1672786996248,1.93547889,16690.0,16689.0,1.48683651]
[1672786996513,1.31919889,16690.0,16689.0,1.26221455]
[1672786996750,1.31919194,16690.0,16689.0,1.47460079]
[1672786997007,1.04983204,16690.0,16689.0,1.47460079]
[1672786997252,1.31919285,16690.0,16689.0,1.47460079]
[1672786997495,1.93547285,16690.0,16689.0,2.07379779]
[1672786997738,1.04983204,16690.0,16689.0,2.07379779]
[1672786997981,1.66611204,16690.0,16689.0,2.07379779]
[1672786998731,1.09402573,16690.0,16689.0,1.86141155]
[1672786999491,1.40900346,16690.0,16689.0,2.46060855]
[1672786999753,2.02528346,16690.0,16689.0,2.68498827]
[1672787000522,1.45320961,16690.0,16689.0,2.68498827]
[1672787001277,2.06948961,16690.0,16689.0,2.68498827]
[1672787001520,2.06948961,16690.0,16689.0,1.08261455]
[1672787001521,1.09403819,16690.0,16689.0,1.08261455]
[1672787001776,2.15564535,16690.0,16689.0,1.08261455]
[1672787002031,1.7071338,16690.0,16689.0,1.08261455]
[1672787002304,1.7071338,16690.0,16689.0,0.58261455]
[1672787002549,1.64321652,16690.0,16689.0,0.58261455]
[1672787002805,2.17156693,16690.0,16689.0,0.58261455]
[1672787003346,2.23332472,16690.0,16689.0,0.58261455]
[1672787003632,2.83248572,16690.0,16689.0,0.58261455]
[1672787004651,1.63416372,16690.0,16689.0,0.58261455]
[1672787005181,2.17342243,16690.0,16689.0,0.58261455]
[1672787005449,1.55714243,16690.0,16689.0,0.58261455]
[1672787005705,2.17342243,16690.0,16689.0,0.58261455]
[1672787005957,2.77258343,16690.0,16689.0,0.58261455]
[1672787006258,2.17342243,16690.0,16689.0,0.58261455]
[1672787006500,1.61704472,16690.0,16689.0,0.58261455]
[1672787006737,2.83248572,16690.0,16689.0,0.58261455]
[1672787007048,2.30413531,16690.0,16689.0,0.58261455]
[1672787007282,3.08279631,16690.0,16689.0,0.58261455]
[1672787008048,3.08279631,16690.0,16689.0,0.44261455]
[1672787008289,3.27159631,16690.0,16689.0,0.44261455]
[1672787009624,3.57159631,16690.0,16689.0,0.44285854]
[1672787010848,3.39209631,16690.0,16689.0,0.44285854]
[1672787011103,3.57119631,16690.0,16689.0,0.44285854]
[1672787011350,3.27119631,16690.0,16689.0,0.44285854]
[1672787012309,3.57119631,16690.0,16689.0,0.44276096]
[1672787016407,3.56111725,16690.0,16689.0,0.44276096]
[1672787016679,3.73424833,16690.0,16689.0,0.45076096]
[1672787016926,3.58011725,16690.0,16689.0,0.45076096]
[1672787021264,4.18457707,16690.0,16689.0,0.45076096]
[1672787021560,3.73424833,16690.0,16689.0,0.45076096]
[1672787021771,3.58011725,16690.0,16689.0,0.45076096]
[1672787023980,3.58011725,16690.0,16689.0,0.00824399]
[1672787025447,3.58011725,16690.0,16689.0,0.00613183]
[1672787025696,3.58011725,16690.0,16689.0,0.00637582]
[1672787027182,4.18438954,16690.0,16689.0,0.00637582]
[1672787027441,4.14026245,16690.0,16689.0,0.00565211]
[1672787028454,3.84026245,16690.0,16689.0,0.00565211]
[1672787028964,4.14026245,16690.0,16689.0,0.00565211]
[1672787030251,3.84026245,16690.0,16689.0,0.00565211]
[1672787030987,3.66146245,16690.0,16689.0,0.00565211]
[1672787031717,4.02034586,16690.0,16689.0,0.00565211]
[1672787031970,2.97074641,16690.0,16689.0,0.00565211]
[1672787032219,2.1831003,16690.0,16689.0,0.00565211]
[1672787032471,2.63073227,16690.0,16689.0,0.00565211]
[1672787032727,2.84616186,16690.0,16689.0,0.00565211]
[1672787032978,2.24700086,16690.0,16689.0,0.18415211]
[1672787033245,2.67335028,16690.0,16689.0,0.18415211]
[1672787033731,3.27251128,16690.0,16689.0,0.18415211]
[1672787034244,3.27251128,16690.0,16689.0,0.00565211]
[1672787034245,3.06413766,16690.0,16689.0,0.00565211]
[1672787034495,2.9031759,16690.0,16689.0,0.00565211]
[1672787034746,4.17377796,16690.0,16689.0,0.00422663]
[1672787034997,3.80744819,16690.0,16689.0,0.00422663]
[1672787035249,3.76338471,16690.0,16689.0,0.00422663]
[1672787035509,3.3132435,16690.0,16689.0,0.00422663]
[1672787040300,3.20324516,16690.0,16689.0,0.00371784]
[1672787040519,3.35737624,16690.0,16689.0,0.00371784]
[1672787041251,2.58696516,16690.0,16689.0,0.00371784]
[1672787041467,3.20324516,16690.0,16689.0,0.00371784]
[1672787043061,2.58696516,16690.0,16689.0,0.00278771]
[1672787043755,3.20324516,16690.0,16689.0,0.00278771]
[1672787043999,2.58696516,16690.0,16689.0,0.00278771]
[1672787044477,2.28696516,16690.0,16689.0,0.00278771]
[1672787045252,2.24283242,16690.0,16689.0,0.00278771]
[1672787045469,2.2870253,16690.0,16689.0,0.00278771]
[1672787045722,2.24283242,16690.0,16689.0,0.00278771]
[1672787048958,2.28705445,16690.0,16689.0,0.00278771]
[1672787049203,2.90333445,16690.0,16689.0,0.00278771]
[1672787049478,2.85911242,16690.0,16689.0,0.00278771]
[1672787050459,2.24283242,16690.0,16689.0,0.00278771]
[1672787050970,2.24283242,16690.0,16689.0,0.00209304]
[1672787054749,2.54283242,16690.0,16689.0,0.00209304]
[1672787055952,3.15911242,16690.0,16689.0,0.00209304]
[1672787056202,3.14911242,16690.0,16689.0,0.00209304]
[1672787056471,3.47472861,16690.0,16689.0,0.00209304]
[1672787056971,2.84911242,16690.0,16689.0,0.00209304]
[1672787057455,3.58755106,16690.0,16689.0,0.00209304]
[1672787058208,2.97127106,16690.0,16689.0,0.00209304]
[1672787058731,2.97127106,16690.0,16689.0,0.18169304]
[1672787058989,3.5776955,16690.0,16689.0,0.18169304]
[1672787059238,3.13236834,16690.0,16689.0,0.18169304]
[1672787060235,3.5776955,16690.0,16689.0,0.18169304]
[1672787063337,2.8582346,16690.0,16689.0,0.18169304]
[1672787063605,3.3964291,16690.0,16689.0,0.18169304]
[1672787064412,2.8582346,16690.0,16689.0,0.18169304]
[1672787064625,3.4705414,16690.0,16689.0,0.18169304]
[1672787068879,2.8582346,16690.0,16689.0,0.18169304]
[1672787069147,3.52748566,16690.0,16689.0,0.18169304]
[1672787071148,3.52745961,16690.0,16689.0,0.18169304]
[1672787071898,2.85820855,16690.0,16689.0,0.18169304]
[1672787072155,3.43567939,16690.0,16689.0,0.18169304]
[1672787072394,2.85820855,16690.0,16689.0,0.18169304]
[1672787072646,2.25181016,16690.0,16689.0,0.18169304]
[1672787072900,2.85830614,16690.0,16689.0,0.18169304]
[1672787074716,3.55353521,16690.0,16689.0,0.18169304]
[1672787075235,3.55353521,16690.0,16689.0,0.16352374]
[1672787075473,2.85830614,16690.0,16689.0,0.16374363]
[1672787076254,3.54450208,16690.0,16689.0,0.16374363]
[1672787082075,2.9380061,16690.0,16689.0,0.16374363]
[1672787082263,3.54447399,16690.0,16689.0,0.16374363]
[1672787083009,2.9380061,16690.0,16689.0,0.16374363]
[1672787085554,2.25181016,16690.0,16689.0,0.16374363]
[1672787085814,2.25181016,16690.0,16689.0,0.00021989]
[1672787086063,2.86809016,16690.0,16689.0,0.00021989]
[1672787087338,2.88789373,16690.0,16689.0,0.00021989]
[1672787087841,3.53674761,16690.0,16689.0,0.00021989]
[1672787088847,2.92046761,16690.0,16689.0,0.00021989]
[1672787089100,3.53674761,16690.0,16689.0,0.00021989]
[1672787091504,2.92046761,16690.0,16689.0,0.00021989]
[1672787091757,3.53674761,16690.0,16689.0,0.00021989]
[1672787092013,2.92046761,16690.0,16689.0,0.00021989]
[1672787092268,3.53674761,16690.0,16689.0,0.00021989]
[1672787092752,2.88789373,16690.0,16689.0,0.00021989]
[1672787093517,2.27161373,16690.0,16689.0,0.00021989]
[1672787093762,2.88789373,16690.0,16689.0,0.00021989]
[1672787096572,2.88789373,16690.0,16689.0,0.00015989]
[1672787097577,3.18789373,16690.0,16689.0,0.00015989]
[1672787098575,3.18789373,16690.0,16687.0,0.52635718]
[1672787098824,0.60700605,16688.0,16687.0,0.18067623]
[1672787099074,3.46630921,16688.0,16687.0,0.18067623]
[1672787099319,2.85930316,16688.0,16687.0,0.18067623]
[1672787099823,3.37360442,16688.0,16687.0,0.18867623]
[1672787100092,3.37360442,16688.0,16687.0,0.18067623]
[1672787100848,3.98051176,16688.0,16687.0,0.18067623]
[1672787101571,3.98851176,16688.0,16687.0,0.18067623]
[1672787102067,3.37223176,16688.0,16687.0,0.18067623]
[1672787102311,3.98851176,16688.0,16687.0,0.18067623]
[1672787102568,3.37223176,16688.0,16687.0,0.18067623]
[1672787102812,3.98851176,16688.0,16687.0,0.18067623]
[1672787103066,2.42965134,16688.0,16687.0,0.18067623]
[1672787103318,1.74588471,16688.0,16687.0,1.30201965]
[1672787103559,1.14665271,16688.0,16687.0,1.30201965]
[1672787103823,1.14665271,16688.0,16687.0,1.56780165]
[1672787104603,1.73788471,16688.0,16687.0,0.70580391]
[1672787104920,1.13965271,16688.0,16687.0,0.77980391]
[1672787105101,1.199464,16688.0,16687.0,0.77980391]
[1672787105344,1.7388652,16688.0,16687.0,0.77980391]
[1672787107585,1.1396332,16688.0,16687.0,0.77980391]
[1672787108120,1.7388652,16688.0,16687.0,0.77980391]
[1672787108366,1.7388652,16688.0,16687.0,0.43427623]
[1672787112624,1.1396332,16688.0,16687.0,0.78033717]
[1672787113040,0.5404012,16688.0,16687.0,0.78033717]
[1672787113544,1.1396332,16688.0,16687.0,0.78033717]
[1672787113787,1.7388652,16688.0,16687.0,0.78033717]
[1672787114806,1.7388652,16688.0,16687.0,0.43427623]
[1672787116297,2.3380972,16688.0,16687.0,0.43427623]
[1672787116549,1.7388652,16688.0,16687.0,0.43427623]
[1672787117317,2.8341701,16688.0,16687.0,0.43427623]
[1672787117566,2.8940009,16688.0,16687.0,0.43427623]
[1672787118327,2.2947689,16688.0,16687.0,0.43427623]
[1672787118559,1.78961151,16688.0,16687.0,0.43427623]
[1672787119263,1.78961151,16688.0,16687.0,0.80817]
[1672787119264,1.19037951,16688.0,16687.0,0.80817]
[1672787119517,1.19037951,16688.0,16687.0,1.073952]
[1672787119770,1.78961151,16688.0,16687.0,1.073952]
[1672787119984,1.78961151,16688.0,16687.0,0.80817]
[1672787120292,2.38884351,16688.0,16687.0,0.43419256]
[1672787123008,1.19037951,16688.0,16687.0,0.43419256]
[1672787123250,1.78961151,16688.0,16687.0,0.43419256]
[1672787124720,1.19037951,16688.0,16687.0,0.80811318]
[1672787127796,1.78961151,16688.0,16687.0,0.43419256]
[1672787128323,1.19037951,16688.0,16687.0,0.84174484]
[1672787129074,0.54040177,16688.0,16687.0,1.06432684]
[1672787129318,0.001,16688.0,16687.0,1.67524612]
[1672787129575,0.001,16688.0,16687.0,1.67532954]
[1672787129842,0.001,16688.0,16687.0,1.45274754]
[1672787130371,0.49468076,16688.0,16687.0,1.85274754]
[1672787130609,0.63017566,16688.0,16687.0,4.0311767]
[1672787130863,0.63017566,16688.0,16687.0,3.4319087]
[1672787131112,0.63017566,16688.0,16687.0,3.1319087]
[1672787131365,0.63017566,16688.0,16687.0,3.4315387]
[1672787131668,0.63017566,16688.0,16687.0,2.6526707]
[1672787131858,0.85418923,16688.0,16687.0,2.24511842]
[1672787132122,0.85418923,16688.0,16687.0,2.53080529]
[1672787132366,0.85418923,16688.0,16687.0,1.86502329]
[1672787132609,0.85418923,16688.0,16687.0,1.87445349]
[1672787133128,0.85398079,16688.0,16687.0,1.35715468]
[1672787133401,0.494656,16688.0,16687.0,1.35715468]
[1672787133626,0.04521684,16688.0,16687.0,1.07146781]
[1672787133871,0.04521684,16688.0,16687.0,1.51679497]
[1672787134135,0.04521684,16688.0,16687.0,0.88773334]
[1672787134390,0.04521684,16688.0,16687.0,0.44240618]
[1672787134651,0.48933248,16688.0,16687.0,0.44240618]
[1672787134890,2.15911455,16688.0,16687.0,0.26410618]
[1672787135133,3.37462655,16688.0,16687.0,0.26410618]
[1672787135469,2.75834655,16688.0,16687.0,0.26410618]
[1672787135662,3.37462655,16688.0,16687.0,0.26410618]
[1672787135920,2.75834655,16688.0,16687.0,0.26410618]
[1672787136166,3.37462655,16688.0,16687.0,0.26410618]
[1672787136424,2.75834655,16688.0,16687.0,0.26410618]
[1672787136680,3.37462655,16688.0,16687.0,0.26410618]
[1672787136908,2.75814655,16688.0,16687.0,0.26410618]
[1672787137164,3.37442655,16688.0,16687.0,0.26410618]
[1672787137663,2.77519455,16688.0,16687.0,0.26410618]
[1672787137959,2.15891455,16688.0,16687.0,0.26410618]
[1672787138424,0.58441861,16688.0,16687.0,0.26410618]
[1672787138671,0.04501684,16688.0,16687.0,0.26410618]
[1672787138938,2.46537422,16688.0,16687.0,0.26410618]
[1672787139203,2.89467775,16688.0,16687.0,0.25467598]
[1672787139443,3.5107149,16688.0,16687.0,0.25467598]
[1672787139707,2.50934002,16688.0,16687.0,0.25467598]
[1672787139939,2.97148894,16688.0,16687.0,0.25467598]
[1672787140492,2.35520894,16688.0,16687.0,0.25467598]
[1672787140713,2.35520894,16688.0,16687.0,0.25478169]
[1672787140972,2.35520894,16688.0,16687.0,0.25467598]
[1672787141209,2.8944375,16688.0,16687.0,0.25467598]
[1672787141463,2.3122535,16688.0,16687.0,0.25467598]
[1672787141709,2.9114855,16688.0,16687.0,0.25478169]
[1672787141950,2.28091752,16688.0,16687.0,0.25467598]
[1672787142688,2.28091752,16688.0,16687.0,0.25478169]
[1672787142939,3.49642952,16688.0,16687.0,0.25467598]
[1672787143197,2.95720096,16688.0,16687.0,0.25467598]
[1672787143625,2.34092096,16688.0,16687.0,0.25467598]
[1672787143889,2.34092096,16688.0,16687.0,0.25478169]
[1672787144101,2.28095774,16688.0,16687.0,0.25478169]
[1672787144401,2.88018974,16688.0,16687.0,0.25478169]
[1672787144900,0.58421858,16688.0,16687.0,0.91958032]
[1672787145147,0.58421858,16688.0,16687.0,1.36490748]
[1672787146863,0.0449498,16688.0,16687.0,1.63068948]
[1672787147109,0.0449498,16688.0,16687.0,1.36490748]
[1672787147838,0.0449498,16688.0,16687.0,1.96417548]
[1672787148100,0.0449498,16688.0,16687.0,3.00712548]
[1672787148346,0.49429451,16688.0,16687.0,3.22402639]
[1672787148842,0.85372957,16688.0,16687.0,3.22402639]
[1672787149344,0.85372756,16688.0,16687.0,3.22402639]
[1672787149585,0.8537281,16688.0,16687.0,2.62475839]
[1672787150549,0.62973601,16688.0,16687.0,4.00289439]
[1672787150886,0.62973601,16688.0,16687.0,2.80435839]
[1672787151152,1.07908072,16688.0,16687.0,2.62645839]
[1672787151414,0.85372965,16688.0,16687.0,1.58175752]
[1672787151665,0.49429606,16688.0,16687.0,1.76130268]
[1672787152185,0.49429606,16688.0,16687.0,1.54440177]
[1672787152688,0.04495135,16688.0,16687.0,0.43427598]
[1672787152974,0.04495135,16688.0,16687.0,0.25467598]
[1672787152975,2.81384749,16688.0,16687.0,0.25467598]
[1672787153226,3.43012749,16688.0,16687.0,0.25467598]
[1672787153473,2.89085871,16688.0,16687.0,0.25467598]
[1672787154220,2.27457871,16688.0,16687.0,0.25467598]
[1672787154440,2.89085871,16688.0,16687.0,0.25467598]
[1672787156811,2.27457871,16688.0,16687.0,0.25467598]
[1672787157102,3.49009071,16688.0,16687.0,0.25467598]
[1672787157788,2.89085871,16688.0,16687.0,0.25467598]
[1672787158331,2.27457871,16688.0,16687.0,0.25467598]
[1672787158569,2.89085871,16688.0,16687.0,0.25467598]
[1672787158817,2.27457871,16688.0,16687.0,0.25467598]
[1672787159067,2.89085871,16688.0,16687.0,0.25467598]
[1672787159314,2.27457871,16688.0,16687.0,0.25467598]
[1672787159564,2.89085871,16688.0,16687.0,0.25467598]
[1672787160270,2.27457871,16688.0,16687.0,0.25467598]
[1672787160781,2.89085871,16688.0,16687.0,0.25467598]
[1672787161524,2.89085871,16688.0,16687.0,0.25458487]
[1672787162062,2.27457871,16688.0,16687.0,0.25458487]
[1672787163030,2.21424648,16688.0,16687.0,0.25458487]
[1672787163543,1.61501448,16688.0,16687.0,0.25458487]
[1672787163793,2.21424648,16688.0,16687.0,0.25458487]
[1672787164050,1.81387273,16688.0,16687.0,0.25458487]
[1672787164317,1.81387273,16688.0,16687.0,0.69991203]